bitfinex-derivatives/quotes_ETHF0:USTF0_20251001
["timestamp","ask_amount","ask_price","bid_price","bid_amount"]
[1759300266746,0.43521,4134.8,4134.7,3.2078]
[1759300267046,0.88331,4134.8,4134.7,3.9907]
[1759300267744,0.88331,4134.8,4134.7,3.99247925]
[1759300269049,0.65941,4134.8,4134.7,4.42769925]
[1759300270250,0.65941,4134.8,4134.7,3.99247925]
[1759300270449,0.88331,4134.8,4134.7,3.99247925]
[1759300270951,0.65941,4134.8,4134.7,4.42769925]
[1759300271353,0.246,4134.9,4134.8,0.88341]
[1759300271656,0.9054,4134.9,4134.8,0.7829]
[1759300273254,0.246,4134.9,4134.8,1.21811]
[1759300273447,3.2078,4135.4,4135.2,0.3347]
[1759300273649,0.68115,4135.3,4135.2,0.7829]
[1759300273851,0.90535,4135.3,4135.2,0.7829]
[1759300274657,0.90535,4135.3,4135.2,1.21807]
[1759300274850,1.12925,4135.3,4135.2,0.7829]
[1759300275255,1.12925,4135.3,4135.2,1.21807]
[1759300275461,0.6941,4135.3,4135.2,1.21807]
[1759300275657,1.12925,4135.3,4135.2,1.21807]
[1759300276260,0.6941,4135.3,4135.2,1.21807]
[1759300277552,1.12925,4135.3,4135.2,1.21807]
[1759300277961,0.6941,4135.3,4135.2,1.21807]
[1759300278848,0.4702,4135.3,4135.2,1.21807]
[1759300280059,3.2078,4135.6,4135.0,0.133]
[1759300280060,3.2078,4135.6,4135.5,0.9159]
[1759300280262,3.678,4135.6,4135.5,0.9159]
[1759300280464,0.4702,4135.6,4135.5,1.35103]
[1759300280766,0.24889205,4135.7,4135.6,1.21802]
[1759300281260,0.00289205,4135.7,4135.6,1.21802]
[1759300286166,0.00289205,4135.7,4135.6,1.46402]
[1759300286465,5.26872547,4136.6,4136.5,0.5406]
[1759300286662,4.39622,4136.6,4136.5,0.5406]
[1759300286863,5.26872547,4136.6,4136.5,0.5406]
[1759300287266,5.27082788,4136.6,4136.5,0.97563]
[1759300287662,5.27082788,4136.6,4136.5,0.5406]
[1759300287865,5.27082788,4136.6,4136.5,0.324]
[1759300288862,5.27082788,4136.6,4136.5,0.75903]
[1759300289055,5.27082788,4136.6,4136.5,1.32513]
[1759300289056,3.42670241,4136.6,4136.5,1.32513]
[1759300289255,0.00210241,4136.6,4136.5,1.32513]
[1759300291965,3.2078,4137.1,4137.0,0.43497]
[1759300292168,3.2078,4137.1,4137.0,2.19757547]
[1759300293070,3.20958789,4137.1,4137.0,2.19757547]
[1759300293958,3.20958789,4137.1,4137.0,1.32507]
[1759300296171,3.2078,4137.6,4137.5,1.32502]
[1759300296574,0.67988,4137.9,4137.8,0.43489]
[1759300296775,1.12088,4137.9,4137.8,1.19249]
[1759300297076,0.9984,4137.9,4137.8,1.19249]
[1759300297265,0.0031302,4137.9,4137.8,1.19499798]
[1759300299674,0.0031302,4137.9,4137.8,4.40279798]
[1759300303676,3.8594,4138.6,4138.5,1.32491]
[1759300303873,3.4246,4138.6,4138.5,1.32491]
[1759300304067,3.2078,4138.6,4138.5,2.19741547]
[1759300304472,3.2078,4138.6,4138.5,1.32491]
[1759300304473,3.4246,4138.6,4138.5,1.32491]
[1759300304778,3.42732368,4138.6,4138.5,1.32491]
[1759300306677,0.00272368,4138.6,4138.5,1.32491]
[1759300306872,0.00272368,4138.6,4138.5,2.19741547]
[1759300308277,0.00272368,4138.6,4138.5,1.32491]
[1759300308882,0.00272368,4138.6,4138.5,2.33403917]
[1759300310689,3.4246,4139.4,4139.3,1.19233]
[1759300310891,0.2168,4139.4,4139.3,1.19233]
[1759300311688,0.65148,4139.8,4139.7,1.19229]
[1759300311888,1.19063947,4139.8,4139.7,0.7576]
[1759300313391,0.43471,4139.6,4139.4,0.43472]
[1759300313693,0.7689,4139.5,4139.4,0.96302]
[1759300314298,1.20361,4139.5,4139.4,1.19162]
[1759300315392,0.7689,4139.5,4139.4,1.19162]
[1759300315694,0.2197,4139.5,4139.4,1.19162]
[1759300316796,0.87761,4139.5,4139.4,1.19162]
[1759300319391,1.20361,4139.5,4139.4,1.19162]
[1759300320702,0.87761,4139.5,4139.4,1.19162]
[1759300321602,1.20361,4139.5,4139.4,1.19162]
[1759300322400,1.20361,4139.5,4139.4,0.7569]
[1759300322601,1.20361,4139.5,4139.4,0.5283]
[1759300322905,0.4429,4139.5,4139.4,1.19162]
[1759300323095,0.65439,4139.7,4139.6,0.7569]
[1759300323294,0.65439,4139.7,4139.6,1.1916]
[1759300323498,0.65439,4139.7,4139.6,0.7569]
[1759300323692,1.20359,4139.7,4139.6,0.5283]
[1759300324499,0.87759,4139.7,4139.6,1.1916]
[1759300324696,0.00255947,4139.8,4139.7,1.19159]
[1759300325507,0.22225947,4139.8,4139.7,1.19159]
[1759300325698,0.65693947,4139.8,4139.7,1.19159]
[1759300326102,0.43723947,4139.8,4139.7,1.19159]
[1759300326807,0.00255947,4139.8,4139.7,1.19159]
[1759300327104,0.43723947,4139.8,4139.7,1.19159]
[1759300327596,0.65693947,4139.8,4139.7,0.7569]
[1759300327904,1.20613947,4139.8,4139.7,0.7569]
[1759300328606,1.20613947,4139.8,4139.7,0.3179]
[1759300328607,1.45113947,4139.8,4139.7,0.3179]
[1759300329204,1.2036,4139.6,4139.5,0.3179]
[1759300329505,0.4429,4139.6,4139.5,1.32311]
[1759300329698,0.2197,4139.6,4139.5,1.32311]
[1759300330311,0.6544,4139.6,4139.5,1.32311]
[1759300331211,0.6544,4139.6,4139.5,0.8884]
[1759300331406,1.2036,4139.6,4139.5,0.5283]
[1759300331702,0.24755947,4139.8,4139.5,0.8884]
[1759300331703,0.245,4139.7,4139.5,0.8884]
[1759300331906,0.67969,4139.7,4139.6,0.8737]
[1759300332101,0.89939,4139.7,4139.6,1.1916]
[1759300332501,0.89939,4139.7,4139.6,0.7569]
[1759300333011,0.89939,4139.7,4139.6,1.1916]
[1759300333706,0.43469,4139.7,4139.6,1.1916]
[1759300333905,0.65693947,4139.8,4139.7,1.19159]
[1759300335011,1.20613947,4139.8,4139.7,0.7569]
[1759300337106,1.20613947,4139.8,4139.7,1.19159]
[1759300337512,0.88013947,4139.8,4139.7,1.19159]
[1759300338606,0.22225947,4139.8,4139.7,1.19159]
[1759300338808,0.00255947,4139.8,4139.7,1.19159]
[1759300340211,0.00255947,4139.8,4139.7,4.39939]
[1759300340421,3.2078,4140.5,4140.4,1.20081]
[1759300340718,3.2078,4140.5,4140.4,2.20993917]
[1759300341217,3.2078,4140.5,4140.4,1.20081]
[1759300341512,3.21007769,4140.5,4140.4,1.20081]
[1759300341912,3.64467769,4140.5,4140.4,1.20081]
[1759300342415,3.21007769,4140.5,4140.4,1.20081]
[1759300342606,3.43217769,4140.5,4140.4,1.20081]
[1759300344517,3.86677769,4140.5,4140.4,1.20081]
[1759300344712,3.43217769,4140.5,4140.4,1.20081]
[1759300344916,3.21007769,4140.5,4140.4,1.20081]
[1759300345710,3.21007769,4140.5,4140.4,2.20993917]
[1759300346908,3.4341,4141.1,4141.0,0.77885]
[1759300347110,3.6791,4141.1,4141.0,1.35385]
[1759300347311,3.8973,4141.1,4141.0,1.35385]
[1759300347614,4.33184,4141.1,4141.0,1.35385]
[1759300347818,3.8973,4141.1,4141.0,1.35385]
[1759300348017,3.89950128,4141.1,4141.0,1.35674795]
[1759300348206,4.33404128,4141.1,4141.0,1.35674795]
[1759300348516,4.65754128,4141.1,4141.0,0.92219795]
[1759300348717,4.65754128,4141.1,4141.0,1.35674795]
[1759300349218,1.44974128,4141.1,4141.0,1.35674795]
[1759300349813,1.01520128,4141.1,4141.0,1.35674795]
[1759300350016,1.44975128,4141.1,4141.0,1.35674795]
[1759300350514,1.01520128,4141.1,4141.0,1.35674795]
[1759300351317,0.69170128,4141.1,4141.0,1.35674795]
[1759300352010,0.22850128,4141.1,4141.0,1.35674795]
[1759300352211,0.00220128,4141.1,4141.0,1.35674795]
[1759300353616,2.21387045,4141.1,4141.0,0.00289795]
[1759300359425,2.21387045,4141.1,4141.0,0.34719795]
[1759300359625,1.20474128,4141.1,4141.0,0.34719795]
[1759300368023,0.77020128,4141.1,4141.0,1.35674795]
[1759300368229,0.00220128,4141.1,4141.0,1.35674795]
[1759300368527,0.43674128,4141.1,4141.0,0.92219795]
[1759300368728,1.20474128,4141.1,4141.0,0.34719795]
[1759300368932,1.20474128,4141.1,4141.0,0.00289795]
[1759300369232,1.20474128,4141.1,4141.0,0.34719795]
[1759300370026,1.20474128,4141.1,4141.0,0.00289795]
[1759300370228,2.07605798,4141.1,4141.0,0.00289795]
[1759300371436,2.07605798,4141.1,4141.0,0.34719795]
[1759300372745,5.28385798,4141.1,4141.0,0.00289795]
[1759300374841,1.21954,4140.2,4140.1,0.3324]
[1759300375035,1.21954,4140.2,4140.1,0.5494]
[1759300375036,1.46454,4140.2,4140.1,0.5494]
[1759300375429,1.46454,4140.2,4140.1,0.3324]
[1759300375730,0.89068,4139.8,4139.7,4.2117]
[1759300375929,0.89068,4139.8,4139.7,4.64860705]
[1759300376129,0.89068,4139.8,4139.7,4.21391705]
[1759300376328,0.89068,4139.8,4139.7,3.96891705]
[1759300376534,0.89068,4139.8,4139.7,4.40360705]
[1759300376734,1.21958,4139.8,4139.7,0.55161705]
[1759300376935,1.21958,4139.8,4139.7,0.33461705]
[1759300377336,1.21958,4139.8,4139.7,0.55161705]
[1759300378240,1.21958,4139.8,4139.7,0.33461705]
[1759300378626,1.41544,4140.5,4140.0,0.1313]
[1759300378828,0.89061,4140.5,4140.4,0.5494]
[1759300379034,0.89067,4139.9,4139.8,0.5494]
[1759300379337,1.21957,4139.9,4139.8,0.5494]
[1759300379533,1.21957,4139.9,4139.8,0.7589]
[1759300380243,0.89067,4139.9,4139.8,1.19358]
[1759300380541,0.89067,4139.9,4139.8,0.7589]
[1759300380843,1.21957,4139.9,4139.8,0.7589]
[1759300381233,1.21958,4139.8,4139.7,0.33461705]
[1759300381741,1.21958,4139.8,4139.7,0.55161705]
[1759300382237,1.46458,4139.8,4139.7,0.55161705]
[1759300382542,1.46458,4139.8,4139.7,0.00221705]
[1759300382843,7.3358967,4139.8,4139.7,0.00221705]
[1759300383945,6.46458,4139.8,4139.7,0.00221705]
[1759300387638,0.43478,4138.9,4138.8,0.3324]
[1759300387838,0.43478,4138.9,4138.7,3.9667]
[1759300388041,0.245,4138.8,4138.7,3.6343]
[1759300388634,0.245,4138.8,4138.7,3.96865925]
[1759300388839,1.0299,4138.8,4138.7,3.96865925]
[1759300389940,0.701,4138.8,4138.7,3.96865925]
[1759300390134,0.67979,4138.8,4138.7,3.96865925]
[1759300390340,0.90799,4138.8,4138.7,3.96865925]
[1759300390942,1.13579,4138.8,4138.7,3.96865925]
[1759300391244,1.13579,4138.8,4138.7,0.76085925]
[1759300393749,0.43479,4138.8,4138.7,0.76085925]
[1759300394041,0.67979,4138.8,4138.7,1.19565925]
[1759300394743,0.67979,4138.8,4138.7,0.76085925]
[1759300395046,0.43479,4138.8,4138.7,0.76085925]
[1759300395649,0.43479,4138.8,4138.7,1.19565925]
[1759300397151,0.43479,4138.8,4138.7,4.40345925]
[1759300403355,0.43479,4138.8,4138.7,1.19565925]
[1759300403858,0.43475,4139.3,4139.2,1.20264]
[1759300405153,3.2078,4139.6,4139.1,0.8713167]
[1759300405154,3.2078,4139.6,4139.5,0.8925]
[1759300406256,3.6425,4139.6,4139.5,0.8925]
[1759300406753,3.8724,4139.6,4139.5,0.8925]
[1759300407463,3.8724,4139.6,4139.5,1.32721]
[1759300407759,3.6425,4139.6,4139.5,1.32721]
[1759300408559,3.8724,4139.6,4139.5,0.8925]
[1759300409663,0.6646,4139.6,4139.5,0.8925]
[1759300412065,0.6646,4139.6,4139.5,1.32721]
[1759300412258,0.6646,4139.6,4139.5,0.8925]
[1759300414162,0.6646,4139.6,4139.5,1.32721]
[1759300414759,0.43467,4140.0,4139.9,0.75107]
[1759300415066,0.43467,4140.0,4139.9,2.0738867]
[1759300415266,3.6456,4140.2,4140.1,0.7679]
[1759300415466,3.8906,4140.2,4140.1,0.7679]
[1759300415768,0.6828,4140.2,4140.1,0.7679]
[1759300416165,1.45074,4140.2,4140.1,0.7679]
[1759300416365,1.45074,4140.2,4140.1,0.5467]
[1759300416870,1.45074,4140.2,4140.1,0.3164]
[1759300417070,1.45074,4140.2,4140.1,0.5467]
[1759300423772,0.67964,4140.2,4140.1,0.7679]
[1759300424071,1.45074,4140.2,4140.1,0.7679]
[1759300424868,1.45074,4140.2,4140.1,0.5467]
[1759300425075,0.7711,4139.8,4139.7,0.5467]
[1759300425270,1.45078,4139.8,4139.7,0.5467]
[1759300425470,1.2058,4139.6,4139.5,0.6713]
[1759300425869,1.2058,4139.6,4139.5,0.5467]
[1759300428173,0.4347,4139.6,4139.5,1.32721]
[1759300428978,0.67969,4139.8,4139.7,0.7679]
[1759300429177,0.43469,4139.8,4139.7,0.7679]
[1759300429579,0.43469,4139.8,4139.7,1.20259]
[1759300429776,0.66459,4139.8,4139.7,0.7679]
[1759300431881,0.66459,4139.8,4139.7,0.3164]
[1759300431882,1.20579,4139.8,4139.7,0.3164]
[1759300432077,0.4347,4139.6,4139.5,0.1246]
[1759300432275,0.6646,4139.6,4139.5,1.01081]
[1759300432475,0.9096,4139.6,4139.5,0.5761]
[1759300432675,0.6797,4139.6,4139.5,1.32721]
[1759300432980,0.4378,4140.1,4140.0,0.8925]
[1759300433179,0.6828,4140.1,4140.0,0.8925]
[1759300433570,1.11744,4140.1,4140.0,0.8925]
[1759300433785,1.44134,4140.1,4140.0,0.8925]
[1759300436586,0.43465,4140.1,4140.0,0.8925]
[1759300437485,0.245,4140.3,4140.2,0.4243]
[1759300437486,0.43462,4140.3,4140.2,0.4243]
[1759300437691,0.64672,4140.3,4140.2,0.7681]
[1759300439287,0.43462,4140.3,4140.2,1.20273]
[1759300439487,0.43462,4140.3,4140.2,0.7681]
[1759300439783,0.64672,4140.3,4140.2,0.7681]
[1759300440488,0.64672,4140.3,4140.2,1.20273]
[1759300440887,0.43462,4140.3,4140.2,1.20273]
[1759300441492,0.43462,4140.3,4140.2,0.7681]
[1759300441676,0.64672,4140.3,4140.2,0.7681]
[1759300444288,0.43462,4140.3,4140.2,0.7681]
[1759300444483,0.64672,4140.3,4140.2,0.7681]
[1759300444986,0.64672,4140.3,4140.2,1.20273]
[1759300445186,0.43462,4140.3,4140.2,1.20273]
[1759300445585,0.87217,4140.8,4140.7,0.7681]
[1759300445790,1.19607,4140.8,4140.7,0.5543]
[1759300448086,1.11717,4140.8,4140.7,1.20268]
[1759300448491,1.11717,4140.8,4140.7,0.7681]
[1759300448690,1.44107,4140.8,4140.7,0.7681]
[1759300450190,1.44107,4140.8,4140.7,1.20268]
[1759300450690,1.44107,4140.8,4140.7,0.7681]
[1759300451092,1.44107,4140.8,4140.7,1.20268]
[1759300451293,1.44107,4140.8,4140.7,0.7681]
[1759300454293,1.44107,4140.8,4140.7,0.5543]
[1759300454495,1.44107,4140.8,4140.5,0.1288]
[1759300454496,0.4376,4140.6,4140.5,0.3438]
[1759300454696,0.7615,4140.6,4140.5,0.3438]
[1759300454998,0.87223,4140.2,4140.1,0.85894]
[1759300455490,0.4376,4140.2,4140.1,1.20274]
[1759300455688,0.64672,4140.4,4140.3,0.85893]
[1759300455883,0.64672,4140.4,4140.3,1.20273]
[1759300457593,0.64672,4140.4,4140.3,0.7681]
[1759300457594,1.19612,4140.4,4140.3,0.7681]
[1759300457894,1.19612,4140.4,4140.3,1.20273]
[1759300458697,1.19612,4140.4,4140.3,0.7681]
[1759300459591,1.19612,4140.4,4140.3,0.3438]
[1759300460798,0.43466,4140.0,4139.9,3.2078]
[1759300460990,1.21596,4140.0,4139.9,3.2078]
[1759300461186,1.21596,4140.0,4139.9,3.85727]
[1759300461390,1.21596,4140.0,4139.9,4.40087]
[1759300461587,0.88016,4140.0,4139.9,4.40087]
[1759300462200,0.66356,4140.0,4139.9,4.40087]
[1759300463297,1.21056,4140.0,4139.9,3.9662]
[1759300463498,1.21056,4140.0,4138.4,2.1690935]
[1759300463499,0.43473,4139.3,4139.2,0.65113192]
[1759300463690,0.88074,4139.2,4139.1,0.4369]
[1759300464092,0.88074,4139.2,4139.1,0.751]
[1759300465102,0.43472,4139.5,4139.4,0.751]
[1759300465302,0.67972,4139.5,4139.4,0.751]
[1759300465500,0.89912,4139.5,4139.4,0.751]
[1759300465696,1.45612,4139.5,4139.4,0.3141]
[1759300465902,1.45612,4139.5,4139.0,0.6539]
[1759300465903,1.21115,4139.1,4139.0,0.6539]
[1759300466105,1.21115,4139.1,4139.0,0.8756]
[1759300466592,0.88075,4139.1,4139.0,0.8756]
[1759300466999,0.7764,4139.6,4139.5,0.6552]
[1759300467199,1.0214,4139.6,4139.5,0.6552]
[1759300468305,1.4561,4139.6,4139.5,0.6552]
[1759300469308,1.21115,4139.1,4139.0,0.5293]
[1759300469513,1.21115,4139.1,4139.0,0.3141]
[1759300470407,1.21115,4139.1,4139.0,0.5293]
[1759300471004,1.21115,4139.1,4139.0,0.6552]
[1759300472310,1.21115,4139.1,4139.0,0.8769]
[1759300472706,1.21115,4139.1,4139.0,0.5293]
[1759300474014,1.21115,4139.1,4139.0,0.6552]
[1759300474313,1.21115,4139.1,4139.0,0.8769]
[1759300476906,0.88075,4139.1,4139.0,0.8769]
[1759300477813,1.21115,4139.1,4139.0,0.8769]
[1759300479304,0.88075,4139.1,4139.0,1.31166]
[1759300479511,0.88075,4139.1,4139.0,0.8769]
[1759300483920,0.88075,4139.1,4139.0,1.31166]
[1759300485531,0.88075,4139.1,4139.0,0.8769]
[1759300486833,0.88075,4139.1,4139.0,1.31166]
[1759300489930,0.43474,4139.2,4139.1,1.18575]
[1759300491837,0.65414,4139.2,4139.1,0.751]
[1759300492136,0.65414,4139.2,4139.1,1.18575]
[1759300493234,0.65414,4139.2,4139.1,1.83511782]
[1759300493235,0.43474,4139.2,4139.1,1.83511782]
[1759300493634,0.65544,4139.2,4139.1,1.83511782]
[1759300493929,0.43474,4139.2,4139.1,1.83511782]
[1759300494531,0.43474,4139.2,4139.1,1.18575]
[1759300497734,4.29444,4140.1,4140.0,0.8637]
[1759300497735,4.07505,4140.1,4140.0,0.8637]
[1759300498038,1.42645,4140.1,4140.0,0.8637]
[1759300499335,0.86725,4140.1,4140.0,1.29836]
[1759300499541,0.65535,4140.1,4140.0,1.29836]
[1759300500242,0.65535,4140.1,4140.0,0.8637]
[1759300500439,4.1071,4140.6,4140.5,0.8637]
[1759300500736,1.18245,4140.1,4140.0,0.96774394]
[1759300500943,1.42645,4140.1,4140.0,0.3158]
[1759300501135,1.42645,4140.1,4140.0,0.5232]
[1759300501329,0.9918,4140.1,4140.0,0.7344]
[1759300501535,0.2207,4140.1,4140.0,0.8637]
[1759300502742,0.7478,4140.1,4140.0,0.8637]
[1759300502946,0.4326,4139.8,4139.7,0.85934394]
[1759300503138,0.4326,4139.8,4139.7,0.5232]
[1759300503139,0.7478,4139.8,4139.7,0.5232]
[1759300503644,0.43467,4140.0,4139.9,0.7344]
[1759300503843,1.18247,4140.0,4139.9,0.7344]
[1759300504445,0.67867,4140.0,4139.9,0.7344]
[1759300504941,2.27361838,4140.4,4139.9,0.7344]
[1759300504942,1.18704838,4140.4,4139.9,0.4186]
[1759300505144,3.8631,4140.6,4140.5,0.8637]
[1759300505345,4.1071,4140.6,4140.5,0.8637]
[1759300505546,4.319,4140.6,4140.5,0.8637]
[1759300505849,4.319,4140.6,4140.0,0.1293]
[1759300505850,1.18245,4140.1,4140.0,0.8637]
[1759300506043,0.86725,4140.1,4140.0,0.8637]
[1759300506745,1.18245,4140.1,4140.0,0.8637]
[1759300506937,0.4559,4140.1,4139.7,0.3158]
[1759300507142,0.7478,4139.8,4139.7,0.5232]
[1759300507651,0.7478,4139.8,4139.7,0.7344]
[1759300508345,1.18248,4139.8,4139.7,0.7344]
[1759300510045,0.7478,4139.5,4139.4,3.4152]
[1759300510450,0.7478,4139.5,4139.4,3.6264]
[1759300510753,0.7478,4139.5,4139.4,3.9422]
[1759300510938,0.4326,4139.5,4139.4,3.9422]
[1759300511144,0.89939,4139.8,4139.7,0.7344]
[1759300511849,1.11129,4139.8,4139.7,0.7344]
[1759300512045,1.42649,4139.8,4139.7,0.7344]
[1759300512550,1.11129,4139.8,4139.7,0.7344]
[1759300513047,0.86729,4139.8,4139.7,0.7344]
[1759300513247,0.244,4139.8,4139.7,1.16909]
[1759300513741,0.65537,4140.0,4139.9,0.4186]
[1759300513945,0.65537,4140.0,4139.9,0.7344]
[1759300514650,0.86727,4140.0,4139.9,0.7344]
[1759300516357,1.18251,4139.6,4139.5,0.6525]
[1759300517350,1.18251,4139.6,4139.5,0.5232]
[1759300517549,1.29632,4139.5,4139.4,3.2078]
[1759300517756,2.16816838,4139.5,4139.4,3.2078]
[1759300520758,2.05436838,4139.5,4139.4,3.5236]
[1759300520947,2.05436838,4139.5,4139.4,3.731]
[1759300521153,1.18252,4139.5,4139.4,3.9422]
[1759300521452,1.11132,4139.5,4139.4,3.9422]
[1759300524058,1.11132,4139.5,4139.4,0.7344]
[1759300524461,1.45462,4139.5,4139.4,0.7344]
[1759300528558,1.45462,4139.5,4139.0,0.6723]
[1759300528559,0.43476,4139.1,4139.0,0.6723]
[1759300528763,1.22036,4139.1,4139.0,0.6723]
[1759300528963,0.87706,4139.1,4139.0,0.8989]
[1759300529760,0.244,4139.2,4139.0,0.8989]
[1759300529761,0.67876,4139.2,4139.1,0.773]
[1759300529966,0.67876,4139.2,4139.1,1.20776]
[1759300530165,0.67876,4139.2,4139.1,0.773]
[1759300532657,0.43473,4139.4,4139.3,0.4479]
[1759300532968,0.43471,4139.6,4139.5,0.5786]
[1759300533167,0.43471,4139.6,4139.5,0.9037]
[1759300534671,4.63771,4140.2,4140.0,0.5786]
[1759300534672,0.221,4140.1,4140.0,0.5786]
[1759300534972,0.65565,4140.1,4140.0,0.5786]
[1759300535169,0.89965,4140.1,4140.0,0.9037]
[1759300536063,1.12095,4140.1,4140.0,0.9037]
[1759300536571,2.33609838,4140.1,4140.0,0.5464]
[1759300539876,1.46425,4140.1,4140.0,0.5464]
[1759300540073,1.46425,4140.1,4140.0,0.3251]
[1759300540074,2.33609838,4140.1,4140.0,0.3251]
[1759300540372,1.46425,4140.1,4140.0,0.3251]
[1759300540573,2.33609838,4140.1,4140.0,0.3251]
[1759300541971,1.2203,4139.6,4139.5,0.9037]
[1759300542175,0.877,4139.6,4139.5,0.9037]
[1759300542477,0.6557,4139.6,4139.5,0.9037]
[1759300542969,0.4347,4139.6,4139.5,1.33841]
[1759300543476,0.4347,4139.6,4139.5,0.9037]
[1759300544874,0.6557,4139.6,4139.5,0.9037]
[1759300549084,0.4347,4139.6,4139.5,0.9037]
[1759300549774,0.43471,4139.7,4139.6,0.773]
[1759300550879,0.65571,4139.7,4139.6,0.773]
[1759300551573,0.87701,4139.7,4139.6,0.773]
[1759300552881,0.43471,4139.7,4139.6,0.773]
[1759300553275,0.43471,4139.7,4139.6,1.20771]
[1759300553475,0.43471,4139.7,4139.6,0.773]
[1759300553986,0.43471,4139.7,4139.6,1.20771]
[1759300554476,1.19703,4139.4,4139.3,0.2127]
[1759300554670,0.4367,4139.2,4138.9,0.65085661]
[1759300554869,1.44106,4139.1,4139.0,0.5562]
[1759300555684,1.11546,4139.1,4139.0,0.9082]
[1759300555875,0.87146,4139.1,4139.0,0.9082]
[1759300558285,1.19706,4139.1,4139.0,0.9082]
[1759300558684,0.87146,4139.1,4139.0,0.9082]
[1759300564096,1.19706,4139.1,4139.0,0.9082]
[1759300564284,1.19706,4139.1,4139.0,0.3435]
[1759300564484,1.19706,4139.1,4139.0,0.5562]
[1759300564693,1.19706,4139.1,4139.0,0.6902]
[1759300565691,1.19706,4139.1,4139.0,0.9082]
[1759300566484,0.67876,4139.1,4139.0,0.9082]
[1759300566889,0.89306,4139.1,4139.0,0.9082]
[1759300568285,0.43476,4139.1,4139.0,1.34297]
[1759300568985,0.64906,4139.1,4139.0,0.9082]
[1759300569188,0.87146,4139.1,4139.0,0.9082]
[1759300569781,1.19706,4139.1,4139.0,0.9082]
[1759300570684,0.43476,4139.1,4139.0,1.34297]
[1759300571090,0.64901,4139.6,4139.5,0.9082]
[1759300572193,3.4221,4140.3,4139.8,0.218]
[1759300572389,4.32314,4140.3,4140.2,0.7742]
[1759300573791,4.07914,4140.3,4140.2,0.7742]
[1759300574094,4.32314,4140.3,4140.2,0.7742]
[1759300574393,3.64244,4140.3,4140.2,0.7742]
[1759300574594,3.85674,4140.3,4140.2,0.7742]
[1759300574786,1.19701,4139.6,4139.5,1.55986042]
[1759300574993,1.19701,4139.6,4139.5,0.9082]
[1759300574994,0.87141,4139.6,4139.5,0.9082]
[1759300575895,1.19701,4139.6,4139.5,0.9082]
[1759300577096,0.87141,4139.6,4139.5,0.9082]
[1759300577297,0.4367,4139.6,4139.5,0.9082]
[1759300577493,1.19694,4140.2,4140.1,0.7742]
[1759300577694,1.44094,4140.2,4140.1,0.5562]
[1759300577991,1.19701,4139.6,4139.4,0.65166042]
[1759300578199,1.19702,4139.5,4139.4,0.2127]
[1759300578394,1.19702,4139.5,4139.4,0.4307]
[1759300578594,0.87142,4139.5,4139.4,1.20893]
[1759300578790,4.07913,4140.3,4140.2,0.7742]
[1759300578990,0.43465,4140.1,4140.0,0.134]
[1759300579193,1.19725,4140.1,4140.0,0.3404]
[1759300579397,0.647,4139.6,4139.5,0.9221]
[1759300579700,0.863,4139.6,4139.5,1.35681]
[1759300580101,0.4283,4139.6,4139.5,1.35681]
[1759300580897,0.2123,4139.6,4139.5,1.35681]
[1759300581505,0.64695,4140.1,4140.0,0.9165]
[1759300584502,0.43465,4140.1,4140.0,1.35116]
[1759300584711,0.43465,4140.1,4140.0,0.9165]
[1759300585605,0.43459,4140.7,4140.6,0.3352]
[1759300585806,3.2078,4140.8,4140.7,0.76979]
[1759300586107,0.00220128,4141.1,4141.0,1.33946]
[1759300586502,0.21820128,4141.1,4141.0,1.33946]
[1759300586710,0.21820128,4141.1,4141.0,0.9049]
[1759300589212,0.21820128,4141.1,4141.0,1.33946]
[1759300589614,0.65275128,4141.1,4141.0,1.33946]
[1759300589814,0.65275128,4141.1,4141.0,0.9049]
[1759300590115,0.65275128,4141.1,4141.0,1.33946]
[1759300591414,0.65275128,4141.1,4141.0,0.9049]
[1759300591716,0.65275128,4141.1,4141.0,1.33946]
[1759300592517,0.21820128,4141.1,4141.0,1.33946]
[1759300592716,0.00220128,4141.1,4141.0,1.33946]
[1759300592918,0.43675128,4141.1,4141.0,1.33946]
[1759300594016,0.00220128,4141.1,4141.0,1.33946]
[1759300594221,0.43675128,4141.1,4141.0,1.33946]
[1759300595321,0.00220128,4141.1,4141.0,1.33946]
[1759300595522,0.43675128,4141.1,4141.0,1.33946]
[1759300597027,0.43675128,4141.1,4141.0,0.9049]
[1759300597028,0.86545128,4141.1,4141.0,0.9049]
[1759300597528,1.18285128,4141.1,4141.0,0.5468]
[1759300597919,1.18285128,4141.1,4141.0,1.33945]
[1759300598422,1.18285128,4141.1,4141.0,0.9049]
[1759300598620,0.86545128,4141.1,4141.0,1.33946]
[1759300599124,0.86545128,4141.1,4141.0,0.9049]
[1759300599328,1.18285128,4141.1,4141.0,0.9049]
[1759300601220,0.96799,4140.7,4140.6,0.3352]
[1759300601425,1.42469,4140.7,4140.6,0.5468]
[1759300601726,1.10729,4140.7,4140.6,1.2061]
[1759300601926,0.89459,4140.7,4140.6,1.2061]
[1759300602824,1.10729,4140.7,4140.6,1.2061]
[1759300603325,0.86333,4140.3,4140.2,4.07874]
[1759300603528,0.216,4140.3,4140.2,0.87094]
[1759300603728,0.43463,4140.4,4140.3,0.64623]
[1759300603927,0.216,4140.5,4140.4,1.20612]
[1759300604127,0.65061,4140.5,4140.4,1.20612]
[1759300604329,0.86331,4140.5,4140.4,0.7715]
[1759300604625,0.86331,4140.5,4140.4,1.20612]
[1759300605029,0.216,4140.5,4140.4,1.20612]
[1759300605228,0.65061,4140.5,4140.4,1.20612]
[1759300606224,0.65061,4140.5,4140.4,0.7715]
[1759300606731,1.18071,4140.5,4140.4,0.3352]